[Event "Titled Tuesday Blitz August 08 Late 2023"]
[White "Francisco_Ferrari"]
[Black "Orlov, Georgi"]
[BlackFideId "2011271"]
[WhiteElo "2176"]
[BlackElo "2558"]
[Result "0-1"]
[Round "5"]
[TimeControl "180+1"]
[Date "2023.08.08"]
[WhiteClock "0:00:20"]
[BlackClock "0:00:59"]
[Board "165"]

1. e4 {[%clk 0:02:42]}  b6 {[%clk 0:02:56]} 2. d4 {[%clk 0:02:35]}  Bb7 {[%clk 0:02:55]} 3. Bd3 {[%clk 0:02:34]}  Nf6 {[%clk 0:02:51]} 4. Nd2 {[%clk 0:02:19]}  e6 {[%clk 0:02:49]} 5. Ngf3 {[%clk 0:02:19]}  d5 {[%clk 0:02:46]} 6. e5 {[%clk 0:02:17]}  Nfd7 {[%clk 0:02:44]} 7. c3 {[%clk 0:02:15]}  c5 {[%clk 0:02:44]} 8. O-O {[%clk 0:02:15]}  Ba6 {[%clk 0:02:43]} 9. Bxa6 {[%clk 0:02:12]}  Nxa6 {[%clk 0:02:42]} 10. Re1 {[%clk 0:02:12]}  Be7 {[%clk 0:02:40]} 11. Nf1 {[%clk 0:02:11]}  h5 {[%clk 0:02:39]} 12. g3 {[%clk 0:02:01]}  h4 {[%clk 0:02:38]} 13. g4 {[%clk 0:01:59]}  cxd4 {[%clk 0:02:28]} 14. cxd4 {[%clk 0:01:59]}  Rc8 {[%clk 0:02:27]} 15. a3 {[%clk 0:01:51]}  b5 {[%clk 0:02:27]} 16. Qe2 {[%clk 0:01:36]}  Qb6 {[%clk 0:02:24]} 17. g5 {[%clk 0:01:34]}  b4 {[%clk 0:02:18]} 18. g6 {[%clk 0:01:32]}  fxg6 {[%clk 0:02:15]} 19. Qd3 {[%clk 0:01:32]}  Nf8 {[%clk 0:02:13]} 20. Bd2 {[%clk 0:01:16]}  Rh5 {[%clk 0:02:11]} 21. axb4 {[%clk 0:01:09]}  Nxb4 {[%clk 0:02:09]} 22. Qb3 {[%clk 0:01:09]}  Nc6 {[%clk 0:02:04]} 23. Qd3 {[%clk 0:01:05]}  Rf5 {[%clk 0:01:58]} 24. Bc3 {[%clk 0:01:02]}  a5 {[%clk 0:01:55]} 25. N1d2 {[%clk 0:00:55]}  g5 {[%clk 0:01:52]} 26. h3 {[%clk 0:00:51]}  Ng6 {[%clk 0:01:50]} 27. Nh2 {[%clk 0:00:39]}  Nf4 {[%clk 0:01:36]} 28. Qf1 {[%clk 0:00:38]}  Nxd4 {[%clk 0:01:21]} 29. Bxa5 {[%clk 0:00:32]}  Qb5 {[%clk 0:01:03]} 30. Qxb5+ {[%clk 0:00:25]}  Nxb5 {[%clk 0:01:03]} 31. Ng4 {[%clk 0:00:18]}  Nxh3+ {[%clk 0:01:02]} 32. Kg2 {[%clk 0:00:19]}  Nf4+ {[%clk 0:01:01]} 33. Kf3 {[%clk 0:00:19]}  Nd3+ {[%clk 0:00:59]} 34. Ke3 {[%clk 0:00:20]} 0-1


[Site "https://www.chess.com"]

[Event "Titled Tuesday Blitz August 08 Late 2023"]
[White "Thiel, Thomas"]
[Black "Berezin, Viktor"]
[WhiteFideId "4615964"]
[BlackFideId "14107872"]
[WhiteElo "2195"]
[BlackElo "2469"]
[Result "0-1"]
[Round "5"]
[TimeControl "180+1"]
[Date "2023.08.08"]
[WhiteClock "0:00:46"]
[BlackClock "0:00:07"]
[Board "167"]

1. e4 {[%clk 0:03:00]}  d5 {[%clk 0:02:51]} 2. exd5 {[%clk 0:02:58]}  Nf6 {[%clk 0:02:48]} 3. d4 {[%clk 0:02:57]}  Bg4 {[%clk 0:02:48]} 4. f3 {[%clk 0:02:55]}  Bf5 {[%clk 0:02:47]} 5. c4 {[%clk 0:02:55]}  e6 {[%clk 0:02:46]} 6. Nc3 {[%clk 0:02:50]}  Bb4 {[%clk 0:02:45]} 7. Bg5 {[%clk 0:02:50]}  exd5 {[%clk 0:02:39]} 8. cxd5 {[%clk 0:02:47]}  O-O {[%clk 0:02:36]} 9. Qb3 {[%clk 0:02:38]}  Re8+ {[%clk 0:02:22]} 10. Ne2 {[%clk 0:02:34]}  Bxc3+ {[%clk 0:02:08]} 11. bxc3 {[%clk 0:02:34]}  Nbd7 {[%clk 0:02:01]} 12. Qxb7 {[%clk 0:02:16]}  Rb8 {[%clk 0:01:59]} 13. Qc6 {[%clk 0:02:13]}  Rb2 {[%clk 0:01:53]} 14. Bc1 {[%clk 0:01:59]}  Rc2 {[%clk 0:01:47]} 15. Bf4 {[%clk 0:01:53]}  Qb8 {[%clk 0:01:37]} 16. Be5 {[%clk 0:01:42]}  Qb2 {[%clk 0:01:28]} 17. Rd1 {[%clk 0:01:39]}  Nxe5 {[%clk 0:01:26]} 18. dxe5 {[%clk 0:01:38]}  Rxe5 {[%clk 0:01:26]} 19. Kf2 {[%clk 0:01:32]}  Rcxe2+ {[%clk 0:00:28]} 20. Bxe2 {[%clk 0:01:33]}  Qxe2+ {[%clk 0:00:26]} 21. Kg3 {[%clk 0:01:32]}  Nh5+ {[%clk 0:00:25]} 22. Kh4 {[%clk 0:01:30]}  g5+ {[%clk 0:00:25]} 23. Kxh5 {[%clk 0:01:29]}  Kg7 {[%clk 0:00:18]} 24. Qh6+ {[%clk 0:01:25]}  Kg8 {[%clk 0:00:18]} 25. Rhg1 {[%clk 0:01:12]}  Bg6+ {[%clk 0:00:18]} 26. Kg4 {[%clk 0:01:12]}  Qe3 {[%clk 0:00:10]} 27. g3 {[%clk 0:01:04]}  Bf5+ {[%clk 0:00:07]} 28. Kh5 {[%clk 0:01:00]}  Qxf3+ {[%clk 0:00:07]} 29. Kxg5 {[%clk 0:00:52]}  Bg6+ {[%clk 0:00:07]} 30. Kh4 {[%clk 0:00:46]}  Rh5+ {[%clk 0:00:07]} 0-1


[Site "https://www.chess.com"]

[Event "Titled Tuesday Blitz August 08 Late 2023"]
[White "Semenova, Alina"]
[Black "Guzman Moneo, Alberto"]
[WhiteFideId "24113875"]
[BlackFideId "2209616"]
[WhiteElo "2098"]
[BlackElo "2351"]
[Result "0-1"]
[Round "5"]
[TimeControl "180+1"]
[Date "2023.08.08"]
[WhiteClock "0:00:00"]
[BlackClock "0:01:26"]
[Board "171"]

1. e4 {[%clk 0:03:00]}  e6 {[%clk 0:02:56]} 2. d4 {[%clk 0:02:57]}  d5 {[%clk 0:02:57]} 3. exd5 {[%clk 0:02:54]}  exd5 {[%clk 0:02:57]} 4. Bd3 {[%clk 0:02:54]}  c5 {[%clk 0:02:57]} 5. c3 {[%clk 0:02:51]}  Nc6 {[%clk 0:02:57]} 6. Qe2+ {[%clk 0:02:46]}  Be7 {[%clk 0:02:50]} 7. Nf3 {[%clk 0:02:44]}  Nf6 {[%clk 0:02:50]} 8. dxc5 {[%clk 0:02:44]}  O-O {[%clk 0:02:49]} 9. O-O {[%clk 0:02:44]}  Bxc5 {[%clk 0:02:48]} 10. Bg5 {[%clk 0:02:42]}  h6 {[%clk 0:02:46]} 11. Bh4 {[%clk 0:02:39]}  Bg4 {[%clk 0:02:38]} 12. h3 {[%clk 0:02:20]}  Bh5 {[%clk 0:02:38]} 13. b4 {[%clk 0:01:53]}  Bb6 {[%clk 0:02:32]} 14. Qd2 {[%clk 0:00:56]}  Bxf3 {[%clk 0:02:31]} 15. gxf3 {[%clk 0:00:56]}  Ne5 {[%clk 0:02:17]} 16. Be2 {[%clk 0:00:46]}  Qd6 {[%clk 0:02:04]} 17. Kh1 {[%clk 0:00:31]}  Ng6 {[%clk 0:01:57]} 18. Bg3 {[%clk 0:00:27]}  Qe6 {[%clk 0:01:57]} 19. Kh2 {[%clk 0:00:18]}  Nh5 {[%clk 0:01:56]} 20. Re1 {[%clk 0:00:05]}  Rfe8 {[%clk 0:01:48]} 21. Na3 {[%clk 0:00:04]}  Qf6 {[%clk 0:01:39]} 22. Bd1 {[%clk 0:00:00]}  Qg5 {[%clk 0:01:26]} 0-1


[Site "https://www.chess.com"]

[Event "Titled Tuesday Blitz August 08 Late 2023"]
[White "Shimanov, Aleksandr"]
[Black "Fedoseev, Vladimir"]
[WhiteFideId "4198603"]
[BlackFideId "24130737"]
[WhiteElo "2937"]
[BlackElo "3106"]
[Result "1/2-1/2"]
[Round "6"]
[TimeControl "180+1"]
[Date "2023.08.08"]
[WhiteClock "0:00:09"]
[BlackClock "0:00:12"]
[Board "1"]

1. d4 {[%clk 0:03:00]}  Nf6 {[%clk 0:02:56]} 2. Bg5 {[%clk 0:03:00]}  g6 {[%clk 0:02:52]} 3. Bxf6 {[%clk 0:03:00]}  exf6 {[%clk 0:02:52]} 4. c4 {[%clk 0:03:01]}  d5 {[%clk 0:02:50]} 5. cxd5 {[%clk 0:02:58]}  Qxd5 {[%clk 0:02:50]} 6. Nc3 {[%clk 0:02:59]}  Qa5 {[%clk 0:02:48]} 7. e3 {[%clk 0:02:56]}  Bg7 {[%clk 0:02:42]} 8. g3 {[%clk 0:02:54]}  O-O {[%clk 0:02:41]} 9. Bg2 {[%clk 0:02:55]}  c5 {[%clk 0:02:37]} 10. Ne2 {[%clk 0:02:52]}  Rd8 {[%clk 0:02:36]} 11. Qb3 {[%clk 0:02:34]}  Nc6 {[%clk 0:02:33]} 12. dxc5 {[%clk 0:02:30]}  Qxc5 {[%clk 0:02:02]} 13. O-O {[%clk 0:02:29]}  Rb8 {[%clk 0:02:02]} 14. Nf4 {[%clk 0:02:29]}  Na5 {[%clk 0:01:55]} 15. Qb5 {[%clk 0:02:18]}  Qxb5 {[%clk 0:01:54]} 16. Nxb5 {[%clk 0:02:19]}  a6 {[%clk 0:01:52]} 17. Nd4 {[%clk 0:02:19]}  f5 {[%clk 0:01:48]} 18. Rfd1 {[%clk 0:02:18]}  Bd7 {[%clk 0:01:41]} 19. Rac1 {[%clk 0:02:17]}  Rbc8 {[%clk 0:01:40]} 20. b3 {[%clk 0:02:06]}  Be8 {[%clk 0:01:29]} 21. b4 {[%clk 0:01:45]}  Bxd4 {[%clk 0:00:59]} 22. bxa5 {[%clk 0:01:30]}  Bb2 {[%clk 0:00:50]} 23. Rb1 {[%clk 0:01:16]}  Rxd1+ {[%clk 0:00:50]} 24. Rxd1 {[%clk 0:01:17]}  Bc6 {[%clk 0:00:24]} 25. Nd5 {[%clk 0:01:06]}  Kg7 {[%clk 0:00:21]} 26. Ne7 {[%clk 0:00:55]}  Rc7 {[%clk 0:00:19]} 27. Nxc6 {[%clk 0:00:55]}  bxc6 {[%clk 0:00:19]} 28. Bf1 {[%clk 0:00:56]}  c5 {[%clk 0:00:16]} 29. Bc4 {[%clk 0:00:53]}  Bc3 {[%clk 0:00:16]} 30. Rd6 {[%clk 0:00:53]}  Bxa5 {[%clk 0:00:14]} 31. Rxa6 {[%clk 0:00:51]}  Bc3 {[%clk 0:00:14]} 32. a4 {[%clk 0:00:46]}  Rb7 {[%clk 0:00:15]} 33. Bb5 {[%clk 0:00:43]}  Rc7 {[%clk 0:00:13]} 34. Bc4 {[%clk 0:00:15]}  Rb7 {[%clk 0:00:13]} 35. Bb5 {[%clk 0:00:09]}  Rc7 {[%clk 0:00:12]} 36. Bc4 {[%clk 0:00:09]} 1/2-1/2


[Site "https://www.chess.com"]

[Event "Titled Tuesday Blitz August 08 Late 2023"]
[White "He, Anthony"]
[Black "Terry, Renato"]
[WhiteFideId "2088215"]
[BlackFideId "3803457"]
[WhiteElo "2961"]
[BlackElo "2920"]
[Result "0-1"]
[Round "6"]
[TimeControl "180+1"]
[Date "2023.08.08"]
[WhiteClock "0:00:00"]
[BlackClock "0:00:05"]
[Board "3"]

1. e4 {[%clk 0:03:00]}  c6 {[%clk 0:02:58]} 2. Nf3 {[%clk 0:02:57]}  d5 {[%clk 0:02:58]} 3. Nc3 {[%clk 0:02:57]}  g6 {[%clk 0:02:57]} 4. d4 {[%clk 0:02:55]}  Bg7 {[%clk 0:02:58]} 5. h3 {[%clk 0:02:56]}  Nh6 {[%clk 0:02:58]} 6. e5 {[%clk 0:02:55]}  f6 {[%clk 0:02:58]} 7. Bf4 {[%clk 0:02:54]}  Nf7 {[%clk 0:02:58]} 8. Qe2 {[%clk 0:02:52]}  O-O {[%clk 0:02:55]} 9. a4 {[%clk 0:02:43]}  Na6 {[%clk 0:02:51]} 10. g4 {[%clk 0:02:21]}  Nc7 {[%clk 0:02:48]} 11. Bg3 {[%clk 0:02:18]}  a6 {[%clk 0:02:16]} 12. Bg2 {[%clk 0:02:15]}  fxe5 {[%clk 0:02:08]} 13. Nxe5 {[%clk 0:02:04]}  Nxe5 {[%clk 0:02:08]} 14. Bxe5 {[%clk 0:02:00]}  Bxe5 {[%clk 0:02:07]} 15. Qxe5 {[%clk 0:02:00]}  Ne6 {[%clk 0:02:04]} 16. Ne2 {[%clk 0:02:01]}  Qa5+ {[%clk 0:01:43]} 17. c3 {[%clk 0:01:54]}  Qb6 {[%clk 0:01:43]} 18. b4 {[%clk 0:01:54]}  a5 {[%clk 0:01:43]} 19. bxa5 {[%clk 0:01:54]}  Rxa5 {[%clk 0:01:35]} 20. O-O {[%clk 0:01:51]}  Qc7 {[%clk 0:01:35]} 21. Qe3 {[%clk 0:01:42]}  Nf4 {[%clk 0:01:31]} 22. Nxf4 {[%clk 0:01:42]}  Rxf4 {[%clk 0:01:32]} 23. Rfe1 {[%clk 0:01:39]}  e6 {[%clk 0:01:31]} 24. Qg3 {[%clk 0:01:33]}  Qf7 {[%clk 0:01:27]} 25. Re5 {[%clk 0:01:24]}  b5 {[%clk 0:01:17]} 26. Re2 {[%clk 0:01:21]}  g5 {[%clk 0:01:07]} 27. Rea2 {[%clk 0:01:16]}  Qa7 {[%clk 0:01:06]} 28. Qe3 {[%clk 0:01:12]}  Rxa4 {[%clk 0:00:57]} 29. Rxa4 {[%clk 0:01:11]}  bxa4 {[%clk 0:00:58]} 30. Qe5 {[%clk 0:01:11]}  h6 {[%clk 0:00:58]} 31. Qd6 {[%clk 0:01:08]}  Kg7 {[%clk 0:00:53]} 32. Qxc6 {[%clk 0:01:03]}  Bd7 {[%clk 0:00:53]} 33. Qd6 {[%clk 0:01:04]}  Qb7 {[%clk 0:00:47]} 34. Re1 {[%clk 0:00:52]}  Rf7 {[%clk 0:00:31]} 35. Re2 {[%clk 0:00:41]}  Qb1+ {[%clk 0:00:22]} 36. Kh2 {[%clk 0:00:42]}  Qc1 {[%clk 0:00:22]} 37. Qe5+ {[%clk 0:00:25]}  Kg8 {[%clk 0:00:23]} 38. Qb8+ {[%clk 0:00:16]}  Kg7 {[%clk 0:00:21]} 39. Qe5+ {[%clk 0:00:16]}  Kh7 {[%clk 0:00:22]} 40. c4 {[%clk 0:00:05]}  Qxc4 {[%clk 0:00:16]} 41. h4 {[%clk 0:00:05]}  Qc1 {[%clk 0:00:15]} 42. Re3 {[%clk 0:00:05]}  Rxf2 {[%clk 0:00:13]} 43. hxg5 {[%clk 0:00:06]}  Qd2 {[%clk 0:00:13]} 44. Rg3 {[%clk 0:00:03]}  Qxg5 {[%clk 0:00:13]} 45. Qc7 {[%clk 0:00:03]}  Qh4+ {[%clk 0:00:11]} 46. Rh3 {[%clk 0:00:03]}  Qe7 {[%clk 0:00:09]} 47. g5 {[%clk 0:00:04]}  Rf5 {[%clk 0:00:04]} 48. Rxh6+ {[%clk 0:00:04]}  Kg7 {[%clk 0:00:05]} 49. Bh3 {[%clk 0:00:03]}  Rxg5 {[%clk 0:00:04]} 50. Rxe6 {[%clk 0:00:04]}  Qf7 {[%clk 0:00:05]} 51. Re3 {[%clk 0:00:00]}  Qf2+ {[%clk 0:00:05]} 0-1


[Site "https://www.chess.com"]

[Event "Titled Tuesday Blitz August 08 Late 2023"]
[White "Fressinet, Laurent"]
[Black "Mitrabha, Guha"]
[WhiteFideId "608742"]
[BlackFideId "5057000"]
[WhiteElo "2917"]
[BlackElo "2847"]
[Result "1-0"]
[Round "6"]
[TimeControl "180+1"]
[Date "2023.08.08"]
[WhiteClock "0:00:02"]
[BlackClock "0:00:03"]
[Board "7"]

1. d4 {[%clk 0:02:58]}  Nf6 {[%clk 0:03:00]} 2. Nf3 {[%clk 0:02:54]}  c5 {[%clk 0:02:59]} 3. d5 {[%clk 0:02:53]}  g6 {[%clk 0:02:59]} 4. Nc3 {[%clk 0:02:52]}  Bg7 {[%clk 0:02:59]} 5. e4 {[%clk 0:02:52]}  d6 {[%clk 0:02:59]} 6. Bb5+ {[%clk 0:02:52]}  Bd7 {[%clk 0:02:59]} 7. a4 {[%clk 0:02:52]}  O-O {[%clk 0:02:59]} 8. O-O {[%clk 0:02:51]}  Bxb5 {[%clk 0:03:00]} 9. axb5 {[%clk 0:02:51]}  Nbd7 {[%clk 0:03:00]} 10. Re1 {[%clk 0:02:47]}  Nb6 {[%clk 0:02:59]} 11. Qd3 {[%clk 0:02:35]}  Ne8 {[%clk 0:02:58]} 12. Bf4 {[%clk 0:02:23]}  Nc7 {[%clk 0:02:56]} 13. Ra5 {[%clk 0:02:09]}  Qd7 {[%clk 0:02:51]} 14. Rd1 {[%clk 0:01:54]}  a6 {[%clk 0:02:44]} 15. bxa6 {[%clk 0:01:53]}  Nxa6 {[%clk 0:02:43]} 16. Qb5 {[%clk 0:01:48]}  Qxb5 {[%clk 0:02:33]} 17. Rxb5 {[%clk 0:01:49]}  Nc4 {[%clk 0:02:33]} 18. Bg5 {[%clk 0:01:17]}  Nb4 {[%clk 0:02:17]} 19. Ne2 {[%clk 0:00:59]}  Nxb2 {[%clk 0:02:13]} 20. Rb1 {[%clk 0:00:55]}  Nc4 {[%clk 0:01:52]} 21. Rxb7 {[%clk 0:00:52]}  Nxc2 {[%clk 0:01:49]} 22. Bxe7 {[%clk 0:00:48]}  Rfe8 {[%clk 0:01:49]} 23. h4 {[%clk 0:00:43]}  Nb4 {[%clk 0:01:44]} 24. Ng3 {[%clk 0:00:33]}  Rab8 {[%clk 0:00:58]} 25. Rxb8 {[%clk 0:00:29]}  Rxb8 {[%clk 0:00:58]} 26. Rc1 {[%clk 0:00:29]}  Re8 {[%clk 0:00:58]} 27. Rxc4 {[%clk 0:00:20]}  Rxe7 {[%clk 0:00:58]} 28. h5 {[%clk 0:00:19]}  Bf6 {[%clk 0:00:53]} 29. h6 {[%clk 0:00:17]}  Kf8 {[%clk 0:00:48]} 30. Kf1 {[%clk 0:00:13]}  Ra7 {[%clk 0:00:46]} 31. e5 {[%clk 0:00:09]}  Ra1+ {[%clk 0:00:40]} 32. Ke2 {[%clk 0:00:10]}  Ra2+ {[%clk 0:00:40]} 33. Kf1 {[%clk 0:00:08]}  Be7 {[%clk 0:00:19]} 34. Ne4 {[%clk 0:00:07]}  Ra1+ {[%clk 0:00:13]} 35. Ke2 {[%clk 0:00:06]}  Ra2+ {[%clk 0:00:13]} 36. Nfd2 {[%clk 0:00:06]}  Ra6 {[%clk 0:00:13]} 37. exd6 {[%clk 0:00:06]}  Bxd6 {[%clk 0:00:13]} 38. Nxc5 {[%clk 0:00:06]}  Bxc5 {[%clk 0:00:10]} 39. Rxc5 {[%clk 0:00:07]}  Rd6 {[%clk 0:00:10]} 40. Rc8+ {[%clk 0:00:07]}  Ke7 {[%clk 0:00:11]} 41. Rh8 {[%clk 0:00:08]}  Nxd5 {[%clk 0:00:11]} 42. Rxh7 {[%clk 0:00:08]}  Rd8 {[%clk 0:00:11]} 43. Ne4 {[%clk 0:00:05]}  Nf4+ {[%clk 0:00:11]} 44. Kf3 {[%clk 0:00:05]}  Ne6 {[%clk 0:00:12]} 45. g3 {[%clk 0:00:05]}  Rg8 {[%clk 0:00:11]} 46. Kg2 {[%clk 0:00:05]}  g5 {[%clk 0:00:09]} 47. Kf3 {[%clk 0:00:04]}  g4+ {[%clk 0:00:09]} 48. Ke3 {[%clk 0:00:04]}  Ra8 {[%clk 0:00:04]} 49. Nc3 {[%clk 0:00:04]}  Rd8 {[%clk 0:00:03]} 50. Ne4 {[%clk 0:00:04]}  Ra8 {[%clk 0:00:03]} 51. f4 {[%clk 0:00:04]}  Ra3+ {[%clk 0:00:02]} 52. Kd2 {[%clk 0:00:03]}  Ra2+ {[%clk 0:00:03]} 53. Kc3 {[%clk 0:00:03]}  Ra8 {[%clk 0:00:03]} 54. f5 {[%clk 0:00:03]}  Nc7 {[%clk 0:00:03]} 55. Ng5 {[%clk 0:00:03]}  Nd5+ {[%clk 0:00:03]} 56. Kd4 {[%clk 0:00:02]}  Kd6 {[%clk 0:00:02]} 57. Nxf7+ {[%clk 0:00:01]}  Kc6 {[%clk 0:00:03]} 58. Ne5+ {[%clk 0:00:02]}  Kd6 {[%clk 0:00:03]} 59. Rd7# {[%clk 0:00:02]} 1-0


[Site "https://www.chess.com"]

[Event "Titled Tuesday Blitz August 08 Late 2023"]
[White "Bazeev, German"]
[Black "Aronian, Levon"]
[WhiteFideId "24119350"]
[BlackFideId "13300474"]
[WhiteElo "2810"]
[BlackElo "3038"]
[Result "0-1"]
[Round "6"]
[TimeControl "180+1"]
[Date "2023.08.08"]
[WhiteClock "0:00:50"]
[BlackClock "0:01:10"]
[Board "9"]

1. c4 {[%clk 0:03:00]}  Nf6 {[%clk 0:02:58]} 2. Nc3 {[%clk 0:02:58]}  e5 {[%clk 0:02:58]} 3. Nf3 {[%clk 0:02:58]}  Nc6 {[%clk 0:02:58]} 4. e4 {[%clk 0:02:58]}  Bb4 {[%clk 0:02:58]} 5. d3 {[%clk 0:02:58]}  d6 {[%clk 0:02:58]} 6. h3 {[%clk 0:02:59]}  a5 {[%clk 0:02:55]} 7. Be2 {[%clk 0:02:58]}  Nd4 {[%clk 0:02:49]} 8. Nxd4 {[%clk 0:02:49]}  exd4 {[%clk 0:02:49]} 9. a3 {[%clk 0:02:49]}  Bc5 {[%clk 0:02:50]} 10. Na4 {[%clk 0:02:35]}  Ba7 {[%clk 0:02:49]} 11. Bg5 {[%clk 0:02:36]}  h6 {[%clk 0:02:26]} 12. Bh4 {[%clk 0:02:36]}  g5 {[%clk 0:02:26]} 13. Bg3 {[%clk 0:02:36]}  Nd7 {[%clk 0:02:27]} 14. h4 {[%clk 0:02:28]}  Rg8 {[%clk 0:02:21]} 15. hxg5 {[%clk 0:02:25]}  hxg5 {[%clk 0:02:22]} 16. Qd2 {[%clk 0:02:21]}  Nc5 {[%clk 0:02:17]} 17. Nxc5 {[%clk 0:01:59]}  Bxc5 {[%clk 0:02:17]} 18. O-O-O {[%clk 0:01:45]}  Be6 {[%clk 0:02:11]} 19. Kb1 {[%clk 0:01:34]}  b5 {[%clk 0:02:05]} 20. cxb5 {[%clk 0:01:33]}  Qd7 {[%clk 0:02:04]} 21. a4 {[%clk 0:01:28]}  Bb3 {[%clk 0:01:59]} 22. Rh7 {[%clk 0:01:28]}  Bxa4 {[%clk 0:01:57]} 23. Bh5 {[%clk 0:01:27]}  Bb3 {[%clk 0:01:57]} 24. Rc1 {[%clk 0:01:20]}  Qxb5 {[%clk 0:01:51]} 25. Rc4 {[%clk 0:01:20]}  O-O-O {[%clk 0:01:36]} 26. Bxf7 {[%clk 0:01:19]}  Rh8 {[%clk 0:01:36]} 27. Qxg5 {[%clk 0:00:56]}  Rxh7 {[%clk 0:01:28]} 28. Qf5+ {[%clk 0:00:56]}  Qd7 {[%clk 0:01:11]} 29. Be6 {[%clk 0:00:53]}  Rh1+ {[%clk 0:01:10]} 30. Rc1 {[%clk 0:00:50]}  Bxe6 {[%clk 0:01:10]} 0-1


[Site "https://www.chess.com"]

[Event "Titled Tuesday Blitz August 08 Late 2023"]
[White "Kramnik, Vladimir"]
[Black "Hambleton, Aman"]
[WhiteFideId "4101588"]
[BlackFideId "2606577"]
[WhiteElo "2975"]
[BlackElo "2764"]
[Result "1-0"]
[Round "6"]
[TimeControl "180+1"]
[Date "2023.08.08"]
[WhiteClock "0:00:15"]
[BlackClock "0:00:00"]
[Board "12"]

1. e4 {[%clk 0:03:00]}  c5 {[%clk 0:02:59]} 2. Nf3 {[%clk 0:03:00]}  e6 {[%clk 0:02:58]} 3. b3 {[%clk 0:02:56]}  d6 {[%clk 0:02:53]} 4. Bb2 {[%clk 0:02:54]}  e5 {[%clk 0:02:53]} 5. Bc4 {[%clk 0:02:49]}  Be7 {[%clk 0:02:52]} 6. O-O {[%clk 0:02:47]}  Nf6 {[%clk 0:02:52]} 7. d3 {[%clk 0:02:45]}  a6 {[%clk 0:02:48]} 8. a4 {[%clk 0:02:44]}  Nc6 {[%clk 0:02:46]} 9. h3 {[%clk 0:02:37]}  Rb8 {[%clk 0:02:40]} 10. Nc3 {[%clk 0:02:36]}  O-O {[%clk 0:02:33]} 11. Nh2 {[%clk 0:02:24]}  Be6 {[%clk 0:01:42]} 12. Bxe6 {[%clk 0:02:13]}  fxe6 {[%clk 0:01:42]} 13. Ne2 {[%clk 0:02:13]}  d5 {[%clk 0:01:09]} 14. Ng3 {[%clk 0:02:09]}  d4 {[%clk 0:00:47]} 15. Bc1 {[%clk 0:02:04]}  b5 {[%clk 0:00:42]} 16. Ng4 {[%clk 0:01:54]}  Nd7 {[%clk 0:00:18]} 17. Qe2 {[%clk 0:01:46]}  Qc7 {[%clk 0:00:16]} 18. Bd2 {[%clk 0:01:36]}  Bd6 {[%clk 0:00:10]} 19. Nh5 {[%clk 0:01:29]}  Nb6 {[%clk 0:00:10]} 20. axb5 {[%clk 0:01:24]}  axb5 {[%clk 0:00:11]} 21. Nh2 {[%clk 0:00:45]}  Ne7 {[%clk 0:00:06]} 22. Qg4 {[%clk 0:00:43]}  Ng6 {[%clk 0:00:03]} 23. Qxe6+ {[%clk 0:00:42]}  Kh8 {[%clk 0:00:03]} 24. Ba5 {[%clk 0:00:36]}  Rbe8 {[%clk 0:00:02]} 25. Qg4 {[%clk 0:00:31]}  Qc6 {[%clk 0:00:02]} 26. Bxb6 {[%clk 0:00:30]}  Qxb6 {[%clk 0:00:03]} 27. g3 {[%clk 0:00:29]}  c4 {[%clk 0:00:03]} 28. Nf3 {[%clk 0:00:26]}  cxd3 {[%clk 0:00:02]} 29. cxd3 {[%clk 0:00:26]}  Qc6 {[%clk 0:00:02]} 30. Nh4 {[%clk 0:00:25]}  Bb4 {[%clk 0:00:01]} 31. Nf5 {[%clk 0:00:23]}  Bc3 {[%clk 0:00:01]} 32. Ra7 {[%clk 0:00:21]}  Rg8 {[%clk 0:00:01]} 33. Nhxg7 {[%clk 0:00:18]}  Ref8 {[%clk 0:00:01]} 34. Qh5 {[%clk 0:00:16]}  Qe6 {[%clk 0:00:00]} 35. Nxe6 {[%clk 0:00:15]} 1-0


[Site "https://www.chess.com"]